Cogmind - Beta 11.1 @@@ ROGUE MODE // 2022.06.04 @ 07:43:55 Player: Demise Result: Destroyed by G-34 Mercenary with Small Laser Performance ------------- Evolutions (0) 0 Regions Visited (1) 200 Robots Destroyed (35) 175 Value Destroyed (719) 719 Prototype IDs (2) 40 Alien Tech Used (0) 0 Bonus (0) 0 TOTAL SCORE: 1134 Bonus ------- None Cogmind --------- Core Integrity 0/250 Matter 300/300 Energy 243/250 System Corruption 0% Temperature Cool (6) Movement Rolling (140) Ox4 Location -10/Materials Parts ------- > --- POWER (1) -------- Ion Engine > --- PROPULSION (2) --- Wheel Wheel > --- UTILITY (2) ------ Heat Sink Huge Storage Unit > --- WEAPON (2) ------- Small Laser Small Laser > --- INVENTORY (25) --- Wheel Wheel Wheel Wheel Heat Sink Heat Sink Visual Processing Unit Visual Processing Unit Sensor Array Signal Interpreter Targeting Computer Light Cannon Grenade Launcher Peak State ------------ > --- POWER ------------ Ion Engine > --- PROPULSION ------- Wheel Wheel > --- UTILITY ---------- Heat Sink Huge Storage Unit > --- WEAPON ----------- Small Laser Small Laser > --- INVENTORY -------- Wheel Wheel Wheel Wheel Visual Processing Unit Signal Interpreter Signal Interpreter Targeting Computer Grenade Launcher [Rating: 8] Favorites ----------- Power Ion Engine Engine Ion Engine Propulsion Wheel Leg Aluminum Leg Wheel Wheel Utility Huge Storage Unit Device Heat Sink Storage Huge Storage Unit Processor Signal Interpreter Weapon Small Laser Energy Gun Small Laser Build | -11 -10 ------- Run | Scr Mat Slots Evolved . | . . Power . | . . Propulsion . | . . Utility . | . . Weapon . | . . Parts Attached 28 | 7 21 Power 2 | 1 1 Engine 2 | 1 1 Core . | . . Reactor . | . . Propulsion 12 | 2 10 Treads . | . . Leg 1 | . 1 Wheel 11 | 2 9 Hover . | . . Flight . | . . Utility 8 | 2 6 Device 4 | 1 3 Storage 3 | 1 2 Processor 1 | . 1 Hackware . | . . Protection . | . . Artifact . | . . Weapon 6 | 2 4 Energy Gun 6 | 2 4 Energy Cannon . | . . Ballistic Gun . | . . Ballistic Cannon . | . . Launcher . | . . Special Weapon . | . . Impact Weapon . | . . Slashing Weapon . | . . Piercing Weapon . | . . Special Melee Weapon . | . . Unidentified Prototypes . | . . Parts Lost 6 | . 6 Power 1 | . 1 Propulsion 2 | . 2 Utility 1 | . 1 Weapon 2 | . 2 Highest Loss Streak 3 | . 3 To Critical Strikes . | . . Average Slot Usage (%) 93 | . 93 Engine 13 | . 13 Wheel 26 | . 26 Device 9 | . 9 Storage 14 | . 14 Energy Gun 27 | . 27 Naked Turns . | . . Heaviest Build 93 | 13 93 Greatest Support 26 | 26 26 Greatest Overweight (x) 8 | . 8 Average Overweight (x) 2 | . 2 Largest Inventory Capacity 25 | 8 25 Average Capacity 19 | 7 21 Most Carried 13 | 8 13 Average Carried 7 | 3 8 Final Capacity 25 | 8 25 Final Carried 13 | 8 13 Class Distribution -------------------- 52% | Scavenger-Mutant 47% | Mutant Dominant Class ---------------- Scavenger-Mutant | -10/Materials Resources | -11 -10 ----------- Run | Scr Mat Matter Collected 470 | 270 200 Remotely . | . . Salvage Created 1143 | 223 920 Parts 67 | 21 46 Haulers Intercepted 1 | . 1 Recyclers Shooed . | . . Parts Field Recycled . | . . Retrieved Matter . | . . Parts Self-Destructed . | . . Prevented . | . . Kills | -11 -10 ------- Run | Scr Mat Combat Hostiles Destroyed 20 | . 20 Guns 19 | . 19 Classes Destroyed 8 | 3 5 Worker 5 | 2 3 Builder 1 | . 1 Tunneler 5 | 5 . Hauler 1 | . 1 Recycler 1 | 1 . Watcher 2 | . 2 Swarmer 3 | . 3 Grunt 17 | . 17 Best Kill Streak 6 | 6 5 Combat Bots Only 5 | . 5 Max Kills in Single Turn 1 | 1 1 Gunslinging . | . . Exploded . | . . Melee . | . . Uniques/NPCs Destroyed . | . . Combat | -11 -10 -------- Run | Scr Mat Damage Taken 986 | . 986 Core 255 | . 255 Absorbed by Shields . | . . Core Remaining (%) 100 | 100 . Volleys Fired 121 | 18 103 Largest 2 | 2 2 Hottest 90 | 80 90 Shots Fired 227 | 36 191 Gun 227 | 36 191 Cannon . | . . Launcher . | . . Special . | . . Kinetic . | . . Thermal 227 | 36 191 Explosive . | . . Electromagnetic . | . . Robot Hit Streak 15 | 10 15 Robot Miss Streak 4 | 2 4 Penetration Max . | . . Secondary Targets 2 | . 2 Max Gunslinging Chain 1 | . 1 Shots Hit Robots 138 | 20 118 Core Hits 58 | 9 49 Critical Kills . | . . Critical Parts Destroyed . | . . Critical Strikes . | . . Melee Attacks . | . . Impact . | . . Slashing . | . . Piercing . | . . Sneak Attacks . | . . Combat Hostiles . | . . Follow-up Attacks . | . . Damage Inflicted 1596 | 234 1362 Guns 1596 | 234 1362 Cannons . | . . Explosions . | . . Melee . | . . Ramming . | . . Kinetic . | . . Thermal 1596 | 234 1362 Explosive . | . . Electromagnetic . | . . Impact . | . . Slashing . | . . Piercing . | . . Highest Corruption . | . . Average Corruption . | . . Corruption Purged . | . . Corruption Blocked . | . . Overload Shots . | . . Overflow Damage . | . . Projectiles . | . . Explosions . | . . Melee . | . . Knockbacks . | . . Impact . | . . Kinetic . | . . Secondary . | . . Self-Inflicted Damage . | . . Shots . | . . Rammed . | . . Targets Rammed . | . . Kicked . | . . Crushed . | . . Highest Temperature 423 | 142 423 Average Temperature 116 | 47 136 Received Heat Transfer 450 | . 450 Effects 4 | . 4 Shutdowns 1 | . 1 Energy Bleed 1 | . 1 Interference 1 | . 1 Damage (minor) 1 | . 1 Siege Activations . | . . Robots Corrupted . | . . Combat Hostiles . | . . Parts Fried . | . . Impact Corruptions . | . . Robots Melted 1 | . 1 Combat Hostiles 1 | . 1 Parts Melted 5 | . 5 Heat Transferred 3751 | 525 3226 Parts Sabotaged . | . . Parts Stolen . | . . Parts Stripped . | . . Power Chain Reactions . | . . Missiles Intercepted . | . . Alert | -11 -10 ------- Run | Scr Mat Peak Influence 359 | 40 359 Initial 26 | . 26 Average 208 | 17 232 Maximum Alert Level 1 | . 1 Low Security (%) 35 | 100 27 Level 1 64 | . 72 Level 2 . | . . Level 3 . | . . Level 4 . | . . Level 5 . | . . High Security . | . . Max Security . | . . Squads Dispatched 7 | . 7 Investigation 5 | . 5 Extermination . | . . Reinforcement 2 | . 2 Assault . | . . Garrison . | . . Intercept . | . . Searches Triggered . | . . Construction Impeded . | . . Haulers Reinforced . | . . Active Scanning Responses . | . . Cargo Convoy Interrupts . | . . Stealth | -11 -10 --------- Run | Scr Mat Distress Signals 1 | . 1 Communications Jammed . | . . Distress Signals . | . . Times Spotted 32 | . 32 Peak Tracking Total 5 | . 5 Tactical Retreats . | . . Traps | -11 -10 ------- Run | Scr Mat Traps Triggered 2 | . 2 Indirectly . | . . Trap Hack Attempts . | . . Triggered . | . . Disarmed . | . . Reprogrammed . | . . Reused . | . . Traps Extracted . | . . Installed . | . . Triggered . | . . Machines | -11 -10 ---------- Run | Scr Mat Machines Disabled . | . . Max in Single Turn . | . . Machines Sabotaged . | . . Garrisons Compromised . | . . Overloaded Fab Kills . | . . Hacking | -11 -10 --------- Run | Scr Mat Machines Accessed 7 | . 7 Terminals 5 | . 5 Fabricators . | . . Repair Stations . | . . Recycling Units 2 | . 2 Scanalyzers . | . . Garrison Access . | . . Total Hacks 26 | . 26 Successful 13 | . 13 Failed 13 | . 13 Catastrophic . | . . Database Lockouts . | . . Manual 21 | . 21 Terminals 20 | . 20 Fabricators . | . . Repair Stations . | . . Recycling Units 6 | . 6 Scanalyzers . | . . Garrison Access . | . . Terminal Hacks 5 | . 5 Robot Analysis 3 | . 3 Prototype ID Bank 1 | . 1 Branch Access Points 1 | . 1 Fabricator Hacks . | . . Repair Station Hacks . | . . Recycling Unit Hacks 1 | . 1 Retrieve Components 1 | . 1 Scanalyzer . | . . Garrison Access Hacks . | . . Unauthorized Hacks 7 | . 7 Terminals 5 | . 5 Botnet 5 | . 5 Fabricators . | . . Repair Stations . | . . Recycling Units 2 | . 2 Tunnel 2 | . 2 Scanalyzers . | . . Garrison Access . | . . Data Cores Recovered . | . . Used . | . . Hacking Detections 7 | . 7 Full Trace Events 2 | . 2 Feedback Events . | . . Feedback Blocked . | . . Robot Schematics Acquired . | . . Robots Built . | . . Authchips . | . . Time . | . . Total Robot Build Rating . | . . Part Schematics Acquired . | . . Parts Built . | . . Authchips . | . . Time . | . . Total Part Build Rating . | . . Parts Repaired . | . . Time . | . . Parts Recycled . | . . Recycled Matter . | . . Retrieved Matter . | . . Retrieved Components 2 | . 2 Parts Scanalyzed . | . . Part Schematics Acquired . | . . Parts Damaged . | . . Bothacking | -11 -10 ------------ Run | Scr Mat Used RIF Installer . | . . Robots Hacked . | . . Non-combat . | . . Combat . | . . Robot Hacks Applied . | . . Relay Couplers Released . | . . Fabnet Peak Effective % . | . . Robots Rewired . | . . Allies Hacked . | . . Hacks Repelled . | . . Allies | -11 -10 -------- Run | Scr Mat Total Allies . | . . Largest Group . | . . Highest-Rated Group . | . . Highest-Rated Ally . | . . Total Orders . | . . Ally Attacks . | . . Total Damage . | . . Kills . | . . Allies Corrupted . | . . Allies Melted . | . . Intel | -11 -10 ------- Run | Scr Mat Robot Analysis Total 3 | . 3 Derelict Logs Recovered . | . . Drone Launches . | . . Drone Recoveries . | . . Exploration | -11 -10 ------------- Run | Scr Mat Turns Passed 1269 | 141 1128 Spaces Moved 672 | 75 597 Core 1 | 1 . Treads . | . . Legs 1 | . 1 Wheels 670 | 74 596 Hover . | . . Flight . | . . Fastest Speed 50 | 50 90 Average Speed 121 | 90 125 Slowest Speed 680 | 100 680 Overloaded Moves . | . . Propulsion Burnouts . | . . Robots Hopped . | . . Cave-ins Triggered . | . . Exploration Rate (%) 46 | 3 90 Regions Visited 1 Branch Regions . Pre-discovered Areas 2 | . 2 Known Exits Taken . | . . Unknown Exits Taken 1 | 1 . Scrap Searched . | . . Spaces Dug . | . . Terrain Destroyed . | . . Melee . | . . Projectile . | . . AOE . | . . Terrain Rammed . | . . Walls Destroyed . | . . Machines Disabled . | . . Actions | -11 -10 --------- Run | Scr Mat Total 895 | 109 786 Wait 40 | . 40 Move 671 | 74 597 Hop . | . . Pick Up 21 | 9 12 Fast Attach 13 | 7 6 Attach 5 | . 5 Detach 4 | . 4 Swap 10 | . 10 Drop 10 | 1 9 Fire 121 | 18 103 Melee . | . . Ram . | . . Kick . | . . Crush . | . . Escape Stasis . | . . Rewire . | . . Trap . | . . Miscellaneous . | . . Route ------- -11/Scrapyard -10/Materials (discovered 4 exits: *Mat x2 / *Min x2) History --------- Turn | Location | Event 18 | -11/Scrapyard | Discovered new exit (range 16) 142 | -11/Scrapyard | Entered Materials 305 | -10/Materials | Build established: Mutant 504 | -10/Materials | Discovered new exit (range 16) 551 | -10/Materials | Discovered new exit (range 10) 579 | -10/Materials | Core integrity fell below 50% 598 | -10/Materials | Core integrity fell below 20% 608 | -10/Materials | Lost 3 parts (2n1w) 735 | -10/Materials | Identified exit to Mines 812 | -10/Materials | Discovered new exit (range 8) 918 | -10/Materials | Build established: Scavenger-Mutant 946 | -10/Materials | Identified exit to Materials 1270 | -10/Materials | Destroyed by G-34 Mercenary with Small Laser Last Messages --------------- 01069_ Acquired Lgt. Cannon. 01090_ W-16 Scout destroyed. 01103_ G-34 Mercenary destroyed. 01111_ Acquired Visual Processing Unit. 01119_ G-34 Mercenary destroyed. 01122_ Acquired Heat Sink. 01138_ Destroyed Datajack. 01174_ Destroyed Hover Unit. 01221_ Connecting with Terminal... >>Trojan(Botnet) Trojan loaded successfully. Testing... Terminal linked with 4 systems. Awaiting botnet instructions. >>Prototypes Downloading prototype IDs... Imp. Assault Rifle Imp. Flight Unit 01221_ ALERT: Suspicious activity at Terminal M007. Dispatching Investigation squad. Map ----- +----------------------------------------------------+ | ???# # ######??# """ ## """""???????? | | ???# # """ #???????## """ ## """"????????? | | ???# + """ #????????# ## ????????? | | ???# # """ #????????+ ##########???????? | | #### # #????????# """ #????????????????? | | # #? #????????# """ #????????????????? | | ! # #?######????????# """ #####?##?????????? | | # #???????????????# ##T#?????????? | | ]] # #???????????????# ?????????? | | ] + ########????????# """ ??????????? | | = # ########## """ ???????????? | | # """ #????????????? | | # ########??????? | | ################### # #??????? | | ??# #????????# """ # """ #??????? | | ??# #????????# """ + """ #??????? | | ??# """ #????????# """ #%""" #??????? | | ??# """ ########## ^ # """ #??????? | | ??? """ #""!"!""## # """ #??????? | | ##??? # "!"!" ## """ # #??????? | | #T#####+## ## "R # """ #??????? | | """ # """ #??????? | | > # """ #??????? | | g # """ #??????? | | #######/## #######g####### +%""" #??????? | | ???# #########?# @ T #?# =#% !#??????? | | ???# """ #?????????# #?# ########??????? | | ???# """ #?????????# """"" #?# ## #??????? | | + """ #?????????# """"" #?# T# #??????? | | #??# #?????????# """"" #?# ## """#??????? | | ???# #?????????# #?# ## """#??????? | | ???# #?????????# #?# ## """######## | | ??#########????????# #?# ## # | | ??# #????????#?########### ## """# | | ??# """#??????????# # ## """# """ | | ??# """#??????????# # ## """# """ | | ??# """???????????# "T" # ## # """ | | ### ?????????????# """ # ####+### | | %!###+####################+##### ## #! """ | | !* = *% # """ | | % + """ | | # | | ###+####################+########## # | | ## #?????????????? ???????## ######### | | ## T #?????????????# """ ######## # | | ## #?????????????# """ # # %#% ! !/ | | ## #?????????????# """ # + !%+== !/ | | + #?????????????# # # *#! | | ## #?????????????# # !# ######### | | !##############????????############### #####???? | +----------------------------------------------------+ Best States ------------- Heat Dissipation 35 Energy Generation 10 Energy Capacity 250 Matter Stores 300 Matter Capacity 300 Sight Range 16 Terrain Scan Density 10 Evasion (%) 42 Item Schematics ----------------- None Robot Schematics ------------------ None Fabricated ------------ Nothing Alien Tech Used ----------------- None Achievements -------------- None Challenges ------------ None Game ------ Seed AngularHelicalDesublimator Manual? 0 Play Time 00:12:00 Cumulative 558.6 hours Start 2022.06.04 @ 07:34:19 End 2022.06.04 @ 07:43:55 Sessions 1 Manual Loads 0 Difficulty Rogue Special Mode None Game No. 452 Rogue 452 Adventurer 0 Explorer 0 Win Type - Total 5 Types 4/0/0/1/0/0/0/0/0 Lore% 71 Gallery% 84 Achievement% 66 Wizard Run 0 Options --------- ASCII 0 Keyboard 1 Movement Numpad Keybinds 0 Fullscreen 1 Font 12/Terminus Map View 83x54 Tactical HUD 1 Map Filters NONE Filters NONE Steam 1 RUN: 6a2b86f1-c7dc-42da-819d-2d2c48d268fb